Cogmind - Beta 16 @@@ ROGUE MODE // 2025.10.26 @ 11:45:21 Player: Mxykikker Result: Destroyed by 76-DHZ(R) with Subdweller Beam Cannon Performance ------------- Evolutions (0) 0 Regions Visited (2) 400 Robots Destroyed (6) 30 Value Destroyed (200) 200 Prototype IDs (0) 0 Alien Tech Used (0) 0 Bonus (0) 0 TOTAL SCORE: 630 Bonus ------- None Cogmind --------- Core Integrity 0/250 Matter 300/300 Energy 98/100 System Corruption 0% Temperature Cool (9) Movement Rolling (110) Location -10/Subcaves Parts ------- > --- POWER (1) -------- (None) > --- PROPULSION (2) --- Subdweller Monowheel > --- UTILITY (2) ------ (None) > --- WEAPON (2) ------- Makeshift Hammer Mining Claw > --- INVENTORY (5) ---- Ion Engine Subdweller Power Source Subdweller Optics EM Pulse Gun Barrage Gun Peak State ------------ > --- POWER ------------ Light Nuclear Core > --- PROPULSION ------- Subdweller Monowheel Subdweller Monowheel > --- UTILITY ---------- Scrap Shield > --- WEAPON ----------- Subdweller Machine Gun Mining Claw > --- INVENTORY -------- Wheel Subdweller Optics EM Pulse Gun Particle Gun [Rating: 14] Favorites ----------- Power Ion Engine Engine Ion Engine Power Core Light Nuclear Core Propulsion Subdweller Monowheel Wheel Subdweller Monowheel Utility Small Storage Unit Storage Small Storage Unit Protection Scrap Shield Weapon Mining Claw Ballistic Gun Light Assault Rifle Impact Weapon Makeshift Hammer Slashing Weapon Mining Claw Build | -11 -10 -10 ------- Run | Yrd Mat Sub Slots Evolved . | . . . Power . | . . . Propulsion . | . . . Utility . | . . . Weapon . | . . . Parts Attached 16 | 6 2 8 Power 3 | 1 . 2 Engine 2 | 1 . 1 Core 1 | . . 1 Reactor . | . . . Propulsion 6 | 2 1 3 Treads . | . . . Leg . | . . . Wheel 6 | 2 1 3 Hover . | . . . Flight . | . . . Utility 2 | 1 . 1 Device . | . . . Storage 1 | 1 . . Processor . | . . . Hackware . | . . . Protection 1 | . . 1 Artifact . | . . . Weapon 5 | 2 1 2 Energy Gun . | . . . Energy Cannon . | . . . Ballistic Gun 3 | 2 . 1 Ballistic Cannon . | . . . Launcher . | . . . Special Weapon . | . . . Impact Weapon 1 | . . 1 Slashing Weapon 1 | . 1 . Piercing Weapon . | . . . Special Melee Weapon . | . . . Unidentified Prototypes . | . . . Parts Lost 7 | . . 7 Power 2 | . . 2 Propulsion 3 | . . 3 Utility 1 | . . 1 Weapon 1 | . . 1 Highest Loss Streak 2 | . . 2 To Critical Strikes . | . . . Average Backups 4 | . 4 5 Power 1 | . 1 1 Propulsion . | . . . Utility . | . . . Weapon 1 | . 2 1 Tool/Special . | . . . Unused Backups 8 | . . 8 Power 3 | . . 3 Propulsion . | . . . Utility 1 | . . 1 Weapon 4 | . . 4 Tool/Special . | . . . Average Slot Usage (%) 79 | . 85 77 Engine 9 | . 14 7 Core 3 | . . 5 Wheel 26 | . 28 25 Storage 6 | . 14 3 Protection 5 | . . 8 Ballistic Gun 16 | . 27 11 Slashing Weapon 9 | . . 14 Peak Build Rating 14 | 6 6 14 Average Rating 9 | 4 6 10 On Entrance 4 | . 6 6 Avg Prop Armor Cover (%) . | . . . Naked Turns . | . . . Heaviest Build 29 | 13 13 29 Greatest Support 40 | 20 20 40 Greatest Overweight (x) 1 | . . 1 Average Overweight (x) . | . . . Largest Inventory Capacity 8 | 8 8 8 Average Capacity 6 | 5 8 5 Most Carried 8 | . 6 8 Average Carried 4 | . 4 5 Final Capacity 8 | 8 8 5 Final Carried 6 | . 6 5 Class Distribution -------------------- 58% | Mutant 41% | Subdweller-Mutant Dominant Class ---------------- Mutant | -10/Materials Subdweller-Mutant | -10/Subcaves Resources | -11 -10 -10 ----------- Run | Yrd Mat Sub Matter Collected 402 | 260 29 113 Remotely . | . . . Salvage Created 265 | . 115 150 Parts 17 | . 5 12 Haulers Intercepted . | . . . Recyclers Shooed 1 | . 1 . Parts Field Recycled . | . . . Retrieved Matter . | . . . Parts Self-Destructed 7 | . . 7 Prevented . | . . . Parts Restored . | . . . Kills | -11 -10 -10 ------- Run | Yrd Mat Sub Combat Hostiles Destroyed 5 | . 1 4 Melee 3 | . . 3 Guns 2 | . 1 1 Classes Destroyed 3 | . 2 1 Recycler 1 | . 1 . Grunt 1 | . 1 . Subdweller 4 | . . 4 Best Kill Streak 1 | . 1 1 Combat Bots Only 1 | . 1 1 Max Kills in Single Turn 1 | . 1 1 Gunslinging . | . . . Exploded . | . . . Melee 1 | . . 1 Uniques/NPCs Destroyed . | . . . Combat | -11 -10 -10 -------- Run | Yrd Mat Sub Hostile Shots Fired 72 | . 14 58 Missed 18 | . 5 13 Hits 54 | . 9 45 Projectile 54 | . 9 45 AOE 1 | . . 1 Damage Taken 1162 | . 100 1062 Core 271 | . 12 259 Absorbed by Shields . | . . . Core Remaining (%) 100 | 100 . . Volleys Fired 16 | . 6 10 Largest 2 | . 2 1 Hottest 40 | . 40 30 Shots Fired 21 | . 12 9 Gun 21 | . 12 9 Cannon . | . . . Launcher . | . . . Special . | . . . Kinetic 21 | . 12 9 Thermal . | . . . Explosive . | . . . Electromagnetic . | . . . Robot Hit Streak 9 | . 2 9 Robot Miss Streak 3 | . 3 1 Penetration Max . | . . . Secondary Targets . | . . . Shots Hit Robots 38 | . 6 32 Core Hits 10 | . 4 6 Critical Kills . | . . . Critical Parts Destroyed . | . . . Critical Strikes 1 | . . 1 Destroy 1 | . . 1 Melee Attacks 38 | . . 38 Impact 6 | . . 6 Slashing 32 | . . 32 Piercing . | . . . Sneak Attacks . | . . . Combat Hostiles . | . . . Follow-up Attacks . | . . . Damage Inflicted 728 | . 48 680 Guns 212 | . 48 164 Cannons . | . . . Explosions . | . . . Melee 516 | . . 516 Ramming . | . . . Kinetic 212 | . 48 164 Thermal . | . . . Explosive . | . . . Electromagnetic . | . . . Impact 117 | . . 117 Slashing 399 | . . 399 Piercing . | . . . Highest Corruption . | . . . Average Corruption . | . . . Corruption Purged . | . . . Corruption Blocked . | . . . Overload Shots . | . . . Overflow Damage 26 | . . 26 Projectiles . | . . . Explosions . | . . . Melee 26 | . . 26 Knockbacks . | . . . Impact . | . . . Kinetic . | . . . Secondary . | . . . Self-Inflicted Damage . | . . . Shots . | . . . Rammed . | . . . Targets Rammed . | . . . Kicked . | . . . Crushed . | . . . Highest Temperature 12 | . 12 . Average Temperature 7 | . 7 . Received Heat Transfer 225 | . 54 171 Siege Activations . | . . . Martial Activations . | . . . Shielding Activations . | . . . Robots Disrupted . | . . . Combat Hostiles . | . . . Robots Corrupted . | . . . Combat Hostiles . | . . . Parts Fried . | . . . Impact Corruptions 1 | . . 1 Robots Melted . | . . . Combat Hostiles . | . . . Parts Melted . | . . . Heat Transferred . | . . . Parts Sabotaged . | . . . Parts Stolen . | . . . Parts Stripped . | . . . Power Chain Reactions . | . . . Alert | -11 -10 -10 ------- Run | Yrd Mat Sub Maximum Alert Level . | . . . Low Security (%) 100 | 100 100 . Level 1 . | . . . Level 2 . | . . . Level 3 . | . . . Level 4 . | . . . Level 5 . | . . . High Security . | . . . Max Security . | . . . Peak Influence 25 | . 25 . Initial . | . . . Average 4 | . 4 . Influence Increases 65 | . 65 . Destroy 0b10 Robot/C 20 | . 20 . Destroy 0b10 Robot/NC 5 | . 5 . Destroy Leader 10 | . 10 . Partial Spotted 15 | . 15 . Lose Combat Pursuer 15 | . 15 . Influence Decreases 65 | . 65 . Time Decay 65 | . 65 . Squads Dispatched 3 | . 3 . Investigation . | . . . Extermination . | . . . Reinforcement 3 | . 3 . Assault . | . . . Garrison . | . . . Intercept . | . . . Searches Triggered . | . . . Construction Impeded . | . . . Haulers Reinforced . | . . . Active Scanning Responses . | . . . Cargo Convoy Interrupts . | . . . Stealth | -11 -10 -10 --------- Run | Yrd Mat Sub Distress Signals 2 | . 2 . Communications Jammed . | . . . Distress Signals . | . . . Times Spotted 15 | . 8 7 Peak Tracking Total 4 | . 4 2 Tactical Retreats 1 | . 1 . Traps | -11 -10 -10 ------- Run | Yrd Mat Sub Traps Triggered 1 | . . 1 Indirectly . | . . . Trap Hack Attempts . | . . . Triggered . | . . . Disarmed . | . . . Reprogrammed . | . . . Reused . | . . . Traps Extracted . | . . . Installed . | . . . Triggered . | . . . Machines | -11 -10 -10 ---------- Run | Yrd Mat Sub Machines Disabled . | . . . Max in Single Turn . | . . . Machines Repaired . | . . . Machines Dismantled . | . . . Machines Sabotaged . | . . . Overloaded Fab Kills . | . . . Hacking | -11 -10 -10 --------- Run | Yrd Mat Sub Machines Accessed . | . . . Terminals . | . . . Fabricators . | . . . Repair Stations . | . . . Recycling Units . | . . . Scanalyzers . | . . . Garrison Access . | . . . Total Hacks . | . . . Successful . | . . . Failed . | . . . Catastrophic . | . . . Database Lockouts . | . . . Manual . | . . . Terminals . | . . . Fabricators . | . . . Repair Stations . | . . . Recycling Units . | . . . Scanalyzers . | . . . Garrison Access . | . . . Terminal Hacks . | . . . Fabricator Hacks . | . . . Repair Station Hacks . | . . . Recycling Unit Hacks . | . . . Scanalyzer . | . . . Garrison Access Hacks . | . . . Unauthorized Hacks . | . . . Terminals . | . . . Fabricators . | . . . Repair Stations . | . . . Recycling Units . | . . . Scanalyzers . | . . . Garrison Access . | . . . Data Cores Recovered . | . . . Used . | . . . Hacking Detections . | . . . Full Trace Events . | . . . Feedback Events . | . . . Feedback Blocked . | . . . Robot Schematics Acquired . | . . . Robots Built . | . . . Authchips . | . . . Time . | . . . Total Robot Build Rating . | . . . Part Schematics Acquired . | . . . Parts Built . | . . . Authchips . | . . . Time . | . . . Total Part Build Rating . | . . . Part Studies Acquired . | . . . Parts Repaired . | . . . Time . | . . . Parts Recycled . | . . . Recycled Matter . | . . . Retrieved Matter . | . . . Retrieved Components . | . . . Parts Scanalyzed . | . . . Part Schematics Acquired . | . . . Parts Damaged . | . . . Bothacking | -11 -10 -10 ------------ Run | Yrd Mat Sub Used RIF Installer . | . . . Robots Hacked . | . . . Non-combat . | . . . Combat . | . . . Robot Hacks Applied . | . . . Relay Couplers Released . | . . . Fabnet Peak Effective % . | . . . Robots Rewired . | . . . Allies Hacked . | . . . Hacks Repelled . | . . . Allies | -11 -10 -10 -------- Run | Yrd Mat Sub Total Allies . | . . . Largest Group . | . . . Highest-Rated Group . | . . . Highest-Rated Ally . | . . . Total Orders . | . . . Ally Attacks . | . . . Total Damage . | . . . Kills . | . . . Allies Corrupted . | . . . Allies Melted . | . . . Intel | -11 -10 -10 ------- Run | Yrd Mat Sub Active Infowar (turns) . | . . . Robot Analysis Total . | . . . Derelict Logs Recovered 3 | . . 3 Drone Launches . | . . . Drone Recoveries . | . . . Exploration | -11 -10 -10 ------------- Run | Yrd Mat Sub Turns Passed 1194 | 58 344 792 Spaces Moved 918 | 62 247 609 Core 2 | 2 . . Treads . | . . . Legs . | . . . Wheels 916 | 60 247 609 Hover . | . . . Flight . | . . . Fastest Speed 50 | 50 80 80 Average Speed 94 | 79 80 102 Slowest Speed 120 | 80 80 120 Overloaded Moves . | . . . Propulsion Burnouts . | . . . Robots Hopped . | . . . Potential Cave-ins . | . . . Cave-ins Triggered . | . . . Exploration Rate (%) 29 | 4 42 41 Regions Visited 2 Branch Regions 1 Pre-discovered Areas . | . . . Known Exits Taken . | . . . Unknown Exits Taken 2 | 1 1 . Scrap Searched 1 | . . 1 Spaces Dug . | . . . Terrain Destroyed . | . . . Melee . | . . . Projectile . | . . . AOE . | . . . Terrain Rammed . | . . . Walls Destroyed . | . . . Machines Disabled . | . . . Actions | -11 -10 -10 --------- Run | Yrd Mat Sub Total 1148 | 67 381 700 Wait 135 | . 122 13 Move 916 | 61 246 609 Hop . | . . . Pick Up 11 | . 5 6 Fast Attach 12 | 6 . 6 Attach 1 | . . 1 Detach . | . . . Swap 5 | . 2 3 Drop 11 | . . 11 Fire 16 | . 6 10 Melee 38 | . . 38 Ram . | . . . Kick . | . . . Crush . | . . . Escape Stasis . | . . . Rewire . | . . . Trap . | . . . Miscellaneous 3 | . . 3 Route ------- -11/Scrapyard -10/Materials (discovered 2 exits: [*Min] / [*Sub]) -10/Subcaves (discovered 1 exit: Rec) History --------- Turn | Location | Event 5 | -11/Scrapyard | Discovered new exit (range 15) 59 | -11/Scrapyard | Entered Materials 60 | -10/Materials | Met a group of wandering Federalists 156 | -10/Materials | Discovered new exit (range 8) 306 | -10/Materials | Build established: Mutant 399 | -10/Materials | Discovered new exit (range 3) 403 | -10/Materials | Entered Subcaves 404 | -10/Subcaves | Continued accompanying wandering Federalists (2) 404 | -10/Subcaves | Approached by a straggling Scientist 413 | -10/Subcaves | Learned location of 1 exit from Materials 448 | -10/Subcaves | Ambushed by Subdweller buried in earth 521 | -10/Subcaves | Learned Materials emergency access door positions 573 | -10/Subcaves | Shifting Twisted Machinery released Scrap Shield 590 | -10/Subcaves | Shifting Twisted Machinery released Piercing Trap 867 | -10/Subcaves | Core integrity fell below 50% 1103 | -10/Subcaves | Ambushed by Subdwellers from Twisted Machinery 1137 | -10/Subcaves | Core integrity fell below 20% 1142 | -10/Subcaves | Shifting Twisted Machinery released Barrage Gun 1144 | -10/Subcaves | Identified exit to Recycling 1158 | -10/Subcaves | Shifting Twisted Machinery released Mak. Hammer 1195 | -10/Subcaves | Destroyed by 76-DHZ(R) with Subdweller Beam Cannon Last Messages --------------- 01111_ Acquired 2 matter. 01112_ Broken Sub. Machine Gun destroyed. 01134_ Scrap Shield destroyed. 01138_ Sub. Power Source shoots sparks and powers down. Barrage Gun falls loose from the Twisted Machinery. 01144_ Acquired derelict log, extracted data. Loading 1 Recycling entrance... Mak. Hammer falls loose from the Twisted Machinery. 01159_ Dropped Sub. Machine Gun. 01159_ Acquired Barrage Gun. 01172_ Acquired Mak. Hammer. 01186_ Sub. Monowheel destroyed. 01190_ Broken Sub. Power Source destroyed. 01194_ Destroyed Sub. Monowheel. 01194_ 6M-1RH(R) system corrupted by crushing effect. 01194_ 6M-1RH(R) misfires. Map ----- +----------------------------------------------------+ | | | | | | | | | | | | | ?????????????????????????????????????????????????? | | ?????????????????????????????????????????????????? | | ?????????????????????????????????????????????????? | | ?????????????????????????????????????????????????? | | ?????????????????????????????????????????????????? | | ?????????????????????????????????????????????????? | | ?????????????????????????????????????????????????? | | ?????????????????????????????????????????????????? | | ?????????????????????????????????????????????????? | | ?????????????????????????????????????????????????? | | ?????????????????????????????????????????????????? | | ?????????????????????????????????????????????????? | | ?????????????????????????????????????????????????? | | ?????????????????????????????????????????????????? | | ??????????????????????#??????????????????????????? | | #???????????????####### ?????????????????????????? | | #????????????#### ########################## | | #????????????# #R# "#"##"## ## # ## | | ?????????????# R " " | | ???????###????# ### @# [ "" | | ???????# #???????????## ######## ##""## # ### | | ??????## #????????????##???????############?## | | ??????# ##??????????????????????????????????## | | ??????## #???????????????????????????????????# | | ??##???# #???????????????????????????????????# ## | | ??# #### ##???????????????????????????????????#### | | ??## #??????????????????????????????????????# | | ??# ##??????????????????????????????????????? | | ??## ### #??????????????????????????????????????? | | ### # #?????????????????????????????????????## | | ### ##???????????????????????????????????## | | ### ""####????????????????????????????????# | | ## """#????????????????????????????????### | | ## # ##??????????????????????????????????# | | ### #??????????????????????????????????? | | #?## "" #?????????????????????????????????? | | #??######"" "##?????????????????????????????????? | | #????######""##?????????????????????????????????## | | #???## #???#####?????????????????????????????# #" | | ##### #????## #?????????????????????????????# | | ## #????# #?????????????????????????????# | | ## ###### #?????????????????????????????# #"" | | ?# ##??????????????????????????????### | | ## ##???????????????????????????????# | +----------------------------------------------------+ Best States ------------- Heat Dissipation 25 Energy Generation 15 Energy Capacity 250 Matter Stores 300 Matter Capacity 300 Sight Range 16 Terrain Scan Density 10 Armor Coverage 800 Evasion (%) 44 Item Schematics ----------------- None Robot Schematics ------------------ None Fabricated ------------ Nothing Repaired ---------- Nothing Studied --------- None Alien Tech Used ----------------- None Achievements -------------- None Challenges ------------ None Game ------ Seed ScanGuidedManipulator Manual? 0 Play Time 00:10:51 Cumulative 82.8 hours Start 2025.10.26 @ 11:35:05 End 2025.10.26 @ 11:45:21 Sessions 1 Manual Loads 0 Difficulty Rogue Special Mode None Game No. 126 Rogue 126 Adventurer 0 Explorer 0 Win Type - Total 0 Types 0/0/0/0/0/0/0/0/0/0 Lore% 27 Gallery% 31 Achievement% 23 Wizard Run 0 Options --------- Layout 1 ASCII 0 Keyboard 0 Movement Mouse Keybinds 0 Fullscreen 1 Font 24/Smallcaps Map View 50x35 Zoom Use 0% Tactical HUD 1 Map Filters NONE Filters NONE Steam 1 RUN: 50a51218-57c8-40ea-acdd-f1280278b143